fUSD/lending_fUSD_20250206
["ID","MTS","AMOUNT","RATE_DAILY","PERIOD"]
[352021733,1738884654928,-646.94,0.00017545,2]
[352021734,1738884654937,-771.97,0.00017545,2]
[352021735,1738884654947,-995.51,0.00017545,2]
[352021736,1738884654958,-715.46,0.00017545,2]
[352021737,1738884654968,-505.7,0.00017545,2]
[352021738,1738884654977,-932.97,0.00017545,2]
[352021739,1738884654987,-918.89,0.00017545,2]
[352021740,1738884654998,-1177.2,0.00017545,2]
[352021741,1738884655008,-993.38,0.00017545,2]
[352021742,1738884655017,-1179.75,0.00017545,2]
[352021743,1738884655026,-820.23,0.00017545,2]
[352021744,1738884655036,-1277.04,0.00017545,2]
[352021745,1738884655045,-540.08,0.00017545,2]
[352021746,1738884655054,-2283.16,0.00017545,2]
[352021747,1738884655064,-2600.93,0.00017545,2]
[352021748,1738884655076,-500.0,0.00017545,2]
[352021749,1738884655207,-722.67,0.00017545,2]
[352021750,1738884655217,-687.69,0.00017545,2]
[352021751,1738884655227,-1025.54,0.00017545,2]
[352021752,1738884655237,-1513.89,0.00017545,2]
[352021753,1738884655251,-500.0,0.00017545,2]
[352021754,1738884655261,-540.57,0.00017545,2]
[352021755,1738884655270,-976.31,0.00017545,2]
[352021756,1738884655280,-500.0,0.00017545,2]
[352021757,1738884655290,-883.24,0.00017545,2]
[352021758,1738884655300,-905.7,0.00017545,2]
[352021759,1738884655309,-913.96,0.00017545,2]
[352021760,1738884655321,-772.66,0.00017545,2]
[352021761,1738884655331,-935.94,0.00017545,2]
[352021762,1738884655340,-703.05,0.00017545,2]
[352021763,1738884655351,-897.37,0.00017545,2]
[352021764,1738884655361,-891.65,0.00017545,2]
[352021765,1738884655371,-671.49,0.00017545,2]
[352021766,1738884655381,-867.92,0.00017545,2]
[352021767,1738884655391,-1321.85,0.00017545,2]
[352021768,1738884655400,-1228.86,0.00017545,2]
[352021769,1738884655409,-500.0,0.00017545,2]
[352021770,1738884655419,-500.0,0.00017546,2]
[352021771,1738884655429,-606.89,0.00017546,2]
[352021772,1738884655439,-174.35068356,0.00017546,2]
[352021773,1738884655448,-646.74,0.00017546,2]
[352021774,1738884655458,-500.0,0.00017546,2]
[352021775,1738884655468,-423.59026655,0.00017546,2]
[352021776,1738884655477,-500.0,0.00017546,2]
[352021777,1738884655486,-500.0,0.00017546,2]
[352021778,1738884655495,-500.0,0.00017546,2]
[352021779,1738884655505,-500.0,0.00017546,2]
[352021780,1738884655515,-500.0,0.00017546,2]
[352021781,1738884655524,-500.0,0.00017546,2]
[352021782,1738884655534,-500.0,0.00017546,2]
[352021783,1738884655544,-500.0,0.00017546,2]
[352021784,1738884655554,-500.0,0.00017546,2]
[352021785,1738884655563,-584.47,0.00017546,2]
[352021786,1738884655575,-500.0,0.00017546,2]
[352021787,1738884655584,-500.0,0.00017546,2]
[352021788,1738884655594,-500.0,0.00017546,2]
[352021789,1738884655604,-619.73,0.00017546,2]
[352021790,1738884655614,-500.0,0.00017546,2]
[352021791,1738884655624,-500.0,0.00017546,2]
[352021792,1738884655634,-500.0,0.00017546,2]
[352021793,1738884655643,-500.0,0.00017546,2]
[352021794,1738884655653,-500.0,0.00017546,2]
[352021795,1738884655664,-500.0,0.00017546,2]
[352021796,1738884655673,-500.0,0.00017546,2]
[352021797,1738884655682,-500.0,0.00017546,2]
[352021798,1738884655692,-707.86,0.00017546,2]
[352021799,1738884655701,-500.0,0.00017546,2]
[352021800,1738884655711,-500.0,0.00017546,2]
[352021801,1738884655721,-500.0,0.00017546,2]
[352021802,1738884655730,-500.0,0.00017546,2]
[352021803,1738884655739,-500.0,0.00017546,2]
[352021804,1738884655749,-500.0,0.00017546,2]
[352021805,1738884655759,-224.72,0.00017546,2]
[352021806,1738884655768,-500.0,0.00017546,2]
[352021807,1738884655777,-500.0,0.00017546,2]
[352021808,1738884655787,-500.0,0.00017546,2]
[352021809,1738884655796,-500.0,0.00017546,2]
[352021810,1738884655806,-621.05,0.00017546,2]
[352021811,1738884655816,-500.0,0.00017546,2]
[352021812,1738884655828,-500.0,0.00017546,2]
[352021813,1738884655837,-500.0,0.00017546,2]
[352021814,1738884655847,-500.0,0.00017546,2]
[352021815,1738884655858,-500.0,0.00017546,2]
[352021816,1738884655867,-500.0,0.00017546,2]
[352021817,1738884655876,-500.0,0.00017546,2]
[352021818,1738884655886,-500.0,0.00017546,2]
[352021819,1738884655895,-517.0,0.00017546,2]
[352021820,1738884655905,-500.0,0.00017546,2]
[352021821,1738884655914,-500.0,0.00017546,2]
[352021822,1738884655923,-500.0,0.00017546,2]
[352021823,1738884655933,-500.0,0.00017546,2]
[352021824,1738884655942,-500.0,0.00017546,2]
[352021825,1738884655952,-500.0,0.00017546,2]
[352021826,1738884655962,-500.0,0.00017546,2]
[352021827,1738884655971,-500.0,0.00017546,2]
[352021828,1738884655981,-500.0,0.00017546,2]
[352021829,1738884655991,-500.0,0.00017546,2]
[352021830,1738884656000,-500.0,0.00017546,2]
[352021831,1738884656010,-301.06,0.00017546,2]
[352021832,1738884656019,-500.0,0.00017546,2]
[352021833,1738884656029,-500.0,0.00017546,2]
[352021834,1738884656039,-500.0,0.00017546,2]
[352021835,1738884656048,-500.0,0.00017546,2]
[352021836,1738884656058,-500.0,0.00017546,2]
[352021837,1738884656070,-500.0,0.00017546,2]
[352021838,1738884656079,-500.0,0.00017546,2]
[352021839,1738884656088,-500.0,0.00017546,2]
[352021840,1738884656098,-2409.86,0.00017546,2]
[352021841,1738884656107,-500.0,0.00017546,2]
[352021842,1738884656117,-500.0,0.00017546,2]
[352021843,1738884656127,-500.0,0.00017546,2]
[352021844,1738884656136,-491.28538551,0.00017546,2]
[352021845,1738884656145,-536.0,0.00017546,2]
[352021846,1738884656155,-500.0,0.00017546,2]
[352021847,1738884656164,-500.0,0.00017546,2]
[352021848,1738884656174,-550.57,0.00017546,2]
[352021849,1738884656183,-418.17,0.00017546,2]
[352021850,1738884656193,-500.0,0.00017546,2]
[352021851,1738884656202,-500.0,0.00017546,2]
[352021852,1738884656211,-500.0,0.00017546,2]
[352021853,1738884656221,-610.42,0.00017546,2]
[352021854,1738884656231,-572.06,0.00017546,2]
[352021855,1738884656242,-743.87,0.00017546,2]
[352021856,1738884656257,-265.89,0.00017546,2]
[352021857,1738884656268,-500.0,0.00017546,2]
[352021858,1738884656278,-1072.26,0.00017546,2]
[352021859,1738884656287,-500.0,0.00017546,2]
[352021860,1738884656298,-500.0,0.00017546,2]
[352021861,1738884656307,-873.57,0.00017546,2]
[352021862,1738884656321,-198.44,0.00017546,2]
[352021863,1738884656331,-500.0,0.00017546,2]
[352021864,1738884656340,-1324.35,0.00017546,2]
[352021865,1738884656352,-690.97,0.00017546,2]
[352021866,1738884656367,-500.0,0.00017546,2]
[352021867,1738884656380,-691.92,0.00017546,2]
[352021868,1738884656392,-500.0,0.00017546,2]
[352021869,1738884656406,-861.25,0.00017546,2]
[352021870,1738884656420,-500.0,0.00017546,2]
[352021871,1738884656434,-705.41,0.00017546,2]
[352021872,1738884656447,-500.0,0.00017546,2]
[352021873,1738884656458,-500.0,0.00017546,2]
[352021874,1738884656473,-1208.13,0.00017546,2]
[352021875,1738884656486,-500.0,0.00017546,2]
[352021876,1738884656501,-674.16,0.00017546,2]
[352021877,1738884656515,-398.21,0.00017546,2]
[352021878,1738884656529,-500.0,0.00017546,2]
[352021879,1738884656542,-724.18,0.00017546,2]
[352021880,1738884656558,-500.0,0.00017546,2]
[352021881,1738884656574,-994.87,0.00017546,2]
[352021882,1738884656588,-500.0,0.00017546,2]
[352021883,1738884656601,-500.0,0.00017546,2]
[352021884,1738884656615,-500.0,0.00017546,2]
[352021885,1738884656628,-863.21,0.00017546,2]
[352021886,1738884656640,-500.0,0.00017546,2]
[352021887,1738884656651,-500.0,0.00017546,2]
[352021888,1738884656663,-500.0,0.00017546,2]
[352021889,1738884656678,-500.0,0.00017546,2]
[352021890,1738884656690,-726.94,0.00017546,2]
[352021891,1738884656705,-500.0,0.00017546,2]
[352021892,1738884656718,-500.0,0.00017546,2]
[352021893,1738884656734,-500.0,0.00017546,2]
[352021894,1738884656746,-545.0,0.00017546,2]
[352021895,1738884656758,-500.0,0.00017546,2]
[352021896,1738884656771,-500.0,0.00017546,2]
[352021897,1738884656785,-500.0,0.00017546,2]
[352021898,1738884656798,-490.65,0.00017546,2]
[352021899,1738884656812,-563.16,0.00017546,2]
[352021900,1738884656829,-558.13,0.00017546,2]
[352021901,1738884656841,-500.0,0.00017546,2]
[352021902,1738884656853,-500.0,0.00017546,2]
[352021903,1738884656865,-500.0,0.00017546,2]
[352021904,1738884656877,-500.0,0.00017546,2]
[352021905,1738884656888,-500.0,0.00017546,2]
[352021906,1738884656901,-500.0,0.00017546,2]
[352021907,1738884656913,-500.0,0.00017546,2]
[352021908,1738884656926,-500.0,0.00017546,2]
[352021909,1738884656938,-500.0,0.00017546,2]
[352021910,1738884656951,-227.52,0.00017546,2]
[352021911,1738884656963,-500.0,0.00017546,2]
[352021912,1738884656975,-500.0,0.00017546,2]
[352021913,1738884656987,-500.0,0.00017546,2]
[352021914,1738884656999,-500.0,0.00017546,2]
[352021915,1738884657011,-500.0,0.00017546,2]
[352021916,1738884657024,-500.0,0.00017546,2]
[352021917,1738884657036,-500.0,0.00017546,2]
[352021918,1738884657048,-500.0,0.00017546,2]
[352021919,1738884657061,-500.0,0.00017546,2]
[352021920,1738884657077,-333.58,0.00017547,2]
[352021921,1738884657089,-305.35,0.00017547,2]
[352021922,1738884657101,-500.0,0.00017547,2]
[352021923,1738884657113,-500.0,0.00017547,2]
[352021924,1738884657126,-500.0,0.00017547,2]
[352021925,1738884657138,-500.0,0.00017547,2]
[352021926,1738884657150,-500.0,0.00017547,2]
[352021927,1738884657163,-500.0,0.00017547,2]
[352021928,1738884657174,-500.0,0.00017547,2]
[352021929,1738884657187,-1000.0,0.00017558,2]
[352021930,1738884657199,-487.79961644,0.00017567,2]
[352021931,1738884657211,-16799.58119345,0.00017586,2]
[352021932,1738884657223,-150.0,0.00017606,2]
[352021933,1738884657237,-207.4,0.0001763,2]
[352021934,1738884657250,-150.0,0.00017631,2]
[352021935,1738884657263,-150.0,0.00017634,2]
[352021936,1738884657274,-178.63424479,0.00017663,2]
[352021937,1738884657288,-16799.58119345,0.00017667,2]
[352021938,1738884657300,-162.36,0.00017668,2]
[352021939,1738884657313,-633.69,0.00017671,2]
[352021940,1738884657331,-1301.01,0.00017671,2]
[352021941,1738884657343,-1028.09,0.00017671,2]
[352021942,1738884657355,-551.91,0.00017671,2]
[352021943,1738884657367,-755.26,0.00017671,2]
[352021944,1738884657379,-1368.79,0.00017671,2]
[352021945,1738884657391,-500.0,0.00017671,2]
[352021946,1738884657403,-910.9,0.00017671,2]
[352021947,1738884657415,-500.0,0.00017671,2]
[352021948,1738884657428,-1014.84,0.00017671,2]
[352021949,1738884657440,-500.0,0.00017671,2]
[352021950,1738884657452,-240.1,0.00017671,2]
[352021951,1738884657465,-592.27,0.00017671,2]
[352021952,1738884657478,-801.82,0.00017671,2]
[352021953,1738884657489,-500.0,0.00017671,2]
[352021954,1738884657501,-500.0,0.00017671,2]
[352021955,1738884657514,-649.93,0.00017681,2]
[352021956,1738884657526,-500.0,0.00017681,2]
[352021957,1738884657538,-577.94,0.00017681,2]
[352021958,1738884657550,-1169.64,0.00017681,2]
[352021959,1738884657562,-946.55,0.00017681,2]
[352021960,1738884657577,-500.0,0.00017681,2]
[352021961,1738884657589,-931.11,0.00017681,2]
[352021962,1738884657601,-1459.12,0.00017681,2]
[352021963,1738884657613,-1206.22,0.00017681,2]
[352021964,1738884657624,-940.09,0.00017681,2]
[352021965,1738884657637,-2241.5,0.00017681,2]
[352021966,1738884657648,-555.62,0.00017681,2]
[352021967,1738884657661,-500.0,0.00017681,2]
[352021968,1738884657673,-500.0,0.00017681,2]
[352021969,1738884657686,-1640.07,0.00017681,2]
[352021970,1738884657697,-300.069382,0.00017682,2]
[352021971,1738884657706,-333.538609,0.00017682,2]
[352021972,1738884657716,-500.0,0.00017682,2]
[352021973,1738884657725,-768.26,0.00017682,2]
[352021974,1738884657734,-837.05,0.00017682,2]
[352021975,1738884657743,-500.0,0.00017682,2]
[352021976,1738884657753,-565.61,0.00017682,2]
[352021977,1738884657763,-500.0,0.00017682,2]
[352021978,1738884657772,-785.01,0.00017682,2]
[352021979,1738884657781,-530.11,0.00017682,2]
[352021980,1738884657790,-665.36,0.00017682,2]
[352021981,1738884657800,-500.0,0.00017682,2]
[352021982,1738884657810,-1480.43,0.00017682,2]
[352021983,1738884658041,-500.0,0.00017682,2]
[352021984,1738884658061,-840.77,0.00017682,2]
[352021985,1738884658081,-928.33,0.00017682,2]
[352021986,1738884658091,-646.94,0.00017682,2]
[352021987,1738884658101,-771.97,0.00017682,2]
[352021988,1738884658111,-995.51,0.00017682,2]
[352021989,1738884658120,-715.46,0.00017682,2]
[352021990,1738884658130,-505.7,0.00017682,2]
[352021991,1738884658140,-932.97,0.00017682,2]
[352021992,1738884658149,-918.89,0.00017682,2]
[352021993,1738884658159,-1177.2,0.00017682,2]
[352021994,1738884658168,-993.38,0.00017682,2]
[352021995,1738884658178,-1179.75,0.00017682,2]
[352021996,1738884658188,-820.23,0.00017682,2]
[352021997,1738884658198,-1277.04,0.00017682,2]
[352021998,1738884658208,-540.08,0.00017682,2]
[352021999,1738884658217,-2283.16,0.00017682,2]
[352022000,1738884658227,-2600.93,0.00017682,2]
[352022001,1738884658237,-500.0,0.00017682,2]
[352022002,1738884658250,-722.67,0.00017682,2]
[352022003,1738884658259,-687.69,0.00017682,2]
[352022004,1738884658271,-1025.54,0.00017682,2]
[352022005,1738884658280,-1513.89,0.00017682,2]
[352022006,1738884658290,-500.0,0.00017682,2]
[352022007,1738884658301,-540.57,0.00017682,2]
[352022008,1738884658310,-976.31,0.00017682,2]
[352022009,1738884658323,-500.0,0.00017682,2]
[352022010,1738884658333,-883.24,0.00017682,2]
[352022011,1738884658342,-905.7,0.00017682,2]
[352022012,1738884658351,-913.96,0.00017682,2]
[352022013,1738884658360,-772.66,0.00017682,2]
[352022014,1738884658369,-935.94,0.00017682,2]
[352022015,1738884658379,-703.05,0.00017682,2]
[352022016,1738884658389,-897.37,0.00017682,2]
[352022017,1738884658398,-891.65,0.00017682,2]
[352022018,1738884658408,-671.49,0.00017682,2]
[352022019,1738884658417,-867.92,0.00017682,2]
[352022020,1738884658427,-1321.85,0.00017682,2]
[352022021,1738884658436,-1228.86,0.00017682,2]
[352022022,1738884658446,-500.0,0.00017682,2]
[352022023,1738884658455,-500.0,0.00017683,2]
[352022024,1738884658464,-500.0,0.00017683,2]
[352022025,1738884658473,-500.0,0.00017683,2]
[352022026,1738884658483,-500.0,0.00017683,2]
[352022027,1738884658492,-222.94,0.00017683,2]
[352022028,1738884658501,-500.0,0.00017683,2]
[352022029,1738884658511,-500.0,0.00017683,2]
[352022030,1738884658519,-500.0,0.00017683,2]
[352022031,1738884658528,-500.0,0.00017683,2]
[352022032,1738884658538,-449.72,0.00017683,2]
[352022033,1738884658547,-500.0,0.00017683,2]
[352022034,1738884658556,-500.0,0.00017683,2]
[352022035,1738884658566,-500.0,0.00017683,2]
[352022036,1738884658578,-500.0,0.00017683,2]
[352022037,1738884658588,-200.222038,0.00017683,2]
[352022038,1738884658597,-500.0,0.00017683,2]
[352022039,1738884658605,-477.51,0.00017683,2]
[352022040,1738884658614,-500.0,0.00017683,2]
[352022041,1738884658624,-543.36,0.00017683,2]
[352022042,1738884658634,-500.0,0.00017683,2]
[352022043,1738884658643,-500.0,0.00017683,2]
[352022044,1738884658655,-500.0,0.00017683,2]
[352022045,1738884658664,-500.0,0.00017683,2]
[352022046,1738884658674,-707.86,0.00017683,2]
[352022047,1738884658683,-500.0,0.00017683,2]
[352022048,1738884658692,-555.49,0.00017683,2]
[352022049,1738884658704,-500.0,0.00017683,2]
[352022050,1738884658714,-458.14862278,0.00017683,2]
[352022051,1738884658724,-500.0,0.00017683,2]
[352022052,1738884658735,-500.0,0.00017683,2]
[352022053,1738884658745,-500.0,0.00017683,2]
[352022054,1738884658757,-290.74,0.00017683,2]
[352022055,1738884658766,-500.0,0.00017683,2]
[352022056,1738884658775,-500.0,0.00017683,2]
[352022057,1738884658785,-621.05,0.00017683,2]
[352022058,1738884658795,-500.0,0.00017683,2]
[352022059,1738884658804,-500.0,0.00017683,2]
[352022060,1738884658813,-500.0,0.00017683,2]
[352022061,1738884658825,-500.0,0.00017683,2]
[352022062,1738884658834,-500.0,0.00017683,2]
[352022063,1738884658843,-500.0,0.00017683,2]
[352022064,1738884658852,-500.0,0.00017683,2]
[352022065,1738884658862,-500.0,0.00017683,2]
[352022066,1738884658871,-517.0,0.00017683,2]
[352022067,1738884658880,-500.0,0.00017683,2]
[352022068,1738884658889,-500.0,0.00017683,2]
[352022069,1738884658899,-256.49,0.00017683,2]
[352022070,1738884658908,-500.0,0.00017683,2]
[352022071,1738884658918,-500.0,0.00017683,2]
[352022072,1738884658928,-457.83,0.00017683,2]
[352022073,1738884658938,-500.0,0.00017683,2]
[352022074,1738884658948,-500.0,0.00017683,2]
[352022075,1738884658957,-500.0,0.00017683,2]
[352022076,1738884658967,-500.0,0.00017683,2]
[352022077,1738884658976,-500.0,0.00017683,2]
[352022078,1738884658986,-500.0,0.00017683,2]
[352022079,1738884658995,-500.0,0.00017683,2]
[352022080,1738884659004,-500.0,0.00017683,2]
[352022081,1738884659013,-500.0,0.00017683,2]
[352022082,1738884659023,-500.0,0.00017683,2]
[352022083,1738884659033,-500.0,0.00017683,2]
[352022084,1738884659042,-500.0,0.00017683,2]
[352022085,1738884659051,-350.18445149,0.00017683,2]
[352022086,1738884659061,-2409.86,0.00017683,2]
[352022087,1738884659074,-500.0,0.00017683,2]
[352022088,1738884659084,-500.0,0.00017683,2]
[352022089,1738884659092,-500.0,0.00017683,2]
[352022090,1738884659101,-536.0,0.00017683,2]
[352022091,1738884659110,-500.0,0.00017683,2]
[352022092,1738884659119,-500.0,0.00017683,2]
[352022093,1738884659128,-550.57,0.00017683,2]
[352022094,1738884659137,-500.0,0.00017683,2]
[352022095,1738884659146,-500.0,0.00017683,2]
[352022096,1738884659155,-500.0,0.00017683,2]
[352022097,1738884659164,-610.42,0.00017683,2]
[352022098,1738884659174,-572.06,0.00017683,2]
[352022099,1738884659184,-743.87,0.00017683,2]
[352022100,1738884659193,-580.86,0.00017683,2]
[352022101,1738884659204,-1072.26,0.00017683,2]
[352022102,1738884659214,-500.0,0.00017683,2]
[352022103,1738884659223,-500.0,0.00017683,2]
[352022104,1738884659233,-873.57,0.00017683,2]
[352022105,1738884659243,-500.0,0.00017683,2]
[352022106,1738884659256,-1324.35,0.00017683,2]
[352022107,1738884659266,-690.97,0.00017683,2]
[352022108,1738884659276,-500.0,0.00017683,2]
[352022109,1738884659288,-691.92,0.00017683,2]
[352022110,1738884659297,-186.47954226,0.00017683,2]
[352022111,1738884659307,-861.25,0.00017683,2]
[352022112,1738884659316,-500.0,0.00017683,2]
[352022113,1738884659331,-705.41,0.00017683,2]
[352022114,1738884659340,-341.6,0.00017683,2]
[352022115,1738884659349,-500.0,0.00017683,2]
[352022116,1738884659359,-1208.13,0.00017683,2]
[352022117,1738884659368,-500.0,0.00017683,2]
[352022118,1738884659377,-674.16,0.00017683,2]
[352022119,1738884659387,-500.0,0.00017683,2]
[352022120,1738884659397,-724.18,0.00017683,2]
[352022121,1738884659406,-500.0,0.00017683,2]
[352022122,1738884659416,-994.87,0.00017683,2]
[352022123,1738884659426,-500.0,0.00017683,2]
[352022124,1738884659436,-500.0,0.00017683,2]
[352022125,1738884659446,-500.0,0.00017683,2]
[352022126,1738884659459,-863.21,0.00017683,2]
[352022127,1738884659471,-500.0,0.00017683,2]
[352022128,1738884659481,-500.0,0.00017683,2]
[352022129,1738884659491,-500.0,0.00017683,2]
[352022130,1738884659502,-500.0,0.00017683,2]
[352022131,1738884659511,-726.94,0.00017683,2]
[352022132,1738884659520,-162.28,0.00017683,2]
[352022133,1738884659530,-500.0,0.00017683,2]
[352022134,1738884659539,-500.0,0.00017683,2]
[352022135,1738884659549,-161.07,0.00017683,2]
[352022136,1738884659559,-500.0,0.00017683,2]
[352022137,1738884659572,-500.0,0.00017683,2]
[352022138,1738884659582,-558.13,0.00017683,2]
[352022139,1738884659591,-314.36,0.00017683,2]
[352022140,1738884659601,-500.0,0.00017683,2]
[352022141,1738884659610,-500.0,0.00017683,2]
[352022142,1738884659619,-500.0,0.00017683,2]
[352022143,1738884659629,-500.0,0.00017683,2]
[352022144,1738884659639,-500.0,0.00017683,2]
[352022145,1738884659654,-500.0,0.00017683,2]
[352022146,1738884659663,-500.0,0.00017683,2]
[352022147,1738884659672,-500.0,0.00017683,2]
[352022148,1738884659681,-500.0,0.00017683,2]
[352022149,1738884659691,-500.0,0.00017683,2]
[352022150,1738884659700,-500.0,0.00017683,2]
[352022151,1738884659710,-500.0,0.00017683,2]
[352022152,1738884659720,-500.0,0.00017683,2]
[352022153,1738884659731,-500.0,0.00017683,2]
[352022154,1738884659742,-500.0,0.00017683,2]
[352022155,1738884659752,-500.0,0.00017683,2]
[352022156,1738884659761,-500.0,0.00017683,2]
[352022157,1738884659770,-500.0,0.00017684,2]
[352022158,1738884659780,-521.61,0.00017684,2]
[352022159,1738884659789,-500.0,0.00017684,2]
[352022160,1738884659798,-500.0,0.00017684,2]
[352022161,1738884659807,-500.0,0.00017684,2]
[352022162,1738884659817,-500.0,0.00017684,2]
[352022163,1738884659828,-500.0,0.00017684,2]
[352022164,1738884659838,-792.96774526,0.00017702,2]
[352022165,1738884659847,-150.0,0.00017712,2]
[352022166,1738884659857,-150.0,0.00017715,2]
[352022167,1738884659867,-1000.0,0.00017721,2]
[352022168,1738884659876,-1000.0,0.00017721,2]
[352022169,1738884659885,-150.0,0.00017726,2]
[352022170,1738884659895,-150.0,0.00017729,2]
[352022171,1738884659904,-174077.0623133,0.0001773,2]
[352022172,1738884659914,-150.0,0.00017733,2]
[352022173,1738884659924,-150.0,0.00017734,2]
[352022174,1738884659935,-150.0,0.00017737,2]
[352022175,1738884659945,-150.0,0.0001774,2]
[352022176,1738884659955,-150.0,0.00017741,2]
[352022177,1738884659964,-150.0,0.00017743,2]
[352022178,1738884659974,-150.0,0.00017745,2]
[352022179,1738884659983,-150.0,0.00017745,2]
[352022180,1738884659992,-150.0,0.00017746,2]
[352022181,1738884660002,-16799.58119345,0.00017749,2]
[352022182,1738884660012,-150.0,0.00017751,2]
[352022183,1738884660021,-150.0,0.00017751,2]
[352022184,1738884660031,-150.0,0.00017757,2]
[352022185,1738884660040,-150.0,0.00017758,2]
[352022186,1738884660049,-150.0,0.00017764,2]
[352022187,1738884660059,-150.0,0.00017768,2]
[352022188,1738884660069,-150.0,0.00017768,2]
[352022189,1738884660078,-150.0,0.00017771,2]
[352022190,1738884660088,-150.0,0.00017775,2]
[352022191,1738884660097,-150.0,0.0001778,2]
[352022192,1738884660107,-150.0,0.00017784,2]
[352022193,1738884660116,-150.0,0.00017786,2]
[352022194,1738884660126,-150.0,0.00017788,2]
[352022195,1738884660135,-150.0,0.0001779,2]
[352022196,1738884660145,-150.0,0.00017791,2]
[352022197,1738884660155,-150.0,0.00017792,2]
[352022198,1738884660165,-150.0,0.00017795,2]
[352022199,1738884660174,-150.0,0.00017804,2]
[352022200,1738884660184,-150.0,0.00017804,2]
[352022201,1738884660194,-150.0,0.00017807,2]
[352022202,1738884660206,-1301.01,0.00017808,2]
[352022203,1738884660216,-1028.09,0.00017808,2]
[352022204,1738884660225,-551.91,0.00017808,2]
[352022205,1738884660235,-755.26,0.00017808,2]
[352022206,1738884660246,-1368.79,0.00017808,2]
[352022207,1738884660259,-305.49,0.00017808,2]
[352022208,1738884660269,-910.9,0.00017808,2]
[352022209,1738884660278,-500.0,0.00017808,2]
[352022210,1738884660288,-1014.84,0.00017808,2]
[352022211,1738884660298,-500.0,0.00017808,2]
[352022212,1738884660308,-801.82,0.00017808,2]
[352022213,1738884660318,-500.0,0.00017808,2]
[352022214,1738884660330,-500.0,0.00017808,2]
[352022215,1738884660340,-150.0,0.0001781,2]
[352022216,1738884660350,-150.0,0.00017814,2]
[352022217,1738884660359,-1000.0,0.00017818,2]
[352022218,1738884660369,-649.93,0.00017818,2]
[352022219,1738884660379,-500.0,0.00017818,2]
[352022220,1738884660388,-577.94,0.00017818,2]
[352022221,1738884660397,-1169.64,0.00017818,2]
[352022222,1738884660407,-946.55,0.00017818,2]
[352022223,1738884660416,-500.0,0.00017818,2]
[352022224,1738884660425,-931.11,0.00017818,2]
[352022225,1738884660434,-1459.12,0.00017818,2]
[352022226,1738884660443,-1206.22,0.00017818,2]
[352022227,1738884660452,-940.09,0.00017818,2]
[352022228,1738884660461,-2241.5,0.00017818,2]
[352022229,1738884660470,-555.62,0.00017818,2]
[352022230,1738884660479,-500.0,0.00017818,2]
[352022231,1738884660488,-500.0,0.00017818,2]
[352022232,1738884660497,-1640.07,0.00017818,2]